{"text_format":"1","workbook":"xlsx","n_sheets":4,"sheets":["CRF (v1)","Attributes Description","LOVs","LOVs MDM"],"not_rendered":{"charts":0,"images":4,"macros":1,"external_links":1,"defined_names":104,"comments":0,"pivot_tables":0},"unopened":[],"bounds":{"document_bytes":16777216,"sheet_cells":100000,"rows_first":2000,"rows_last":500,"rows_between":2000,"halvings":0,"cell_chars":16384,"cell_head_chars":4096},"cells_cut":0,"cells_raw":0,"read":"whole","date_system":"1900"}

{"sheet":"CRF (v1)","index":0,"n_rows":112,"n_cols":8,"rows_kept":112,"cut":false,"hidden":false,"merged":[[107,3,107,4],[43,0,43,4],[23,3,23,4],[87,3,87,4],[0,0,0,4],[1,0,4,4],[6,0,6,4],[15,0,15,4],[31,0,31,4],[79,0,79,4],[97,0,97,4],[49,0,49,4],[60,0,60,4],[70,0,70,4]]}
["PROPEL CUSTOMER MASTER DATA REQUEST FORM"]
["PLEASE COMPLETE ALL THE REQUIRED FIELDS \n(MANDATORY FIELDS ARE MARKED WITH A * IF INFORMATION IS NOT COMPLETED THE REQUEST WILL BE REJECTED)"]
[]
[]
[]
[null,null,null,null,null,null,null,"Mandatory Field"]
["GENERAL DETAILS (JCI INTERNAL)",null,null,null,null,null,"*","Mandatory Field"]
[null,null,null,null,null,null,null,"ASM to Complete"]
["REQUESTOR NAME*",null,null,"DISTRIBUTION CHANNEL*","Product Sales"]
["BUSINESS UNIT (SALES ORGANIZATION)*","N60 Fire Detection",null,"DIVISION*","00-Common"]
["ACTION TYPE*",null,null,"DATE*"]
["CHANGE REQUEST TYPE*",null,null,"TITLE*"]
["COMPANY CODE*",4017,null,"EMAIL ADDRESS*"]
[]
[]
["CUSTOMER DETAILS"]
[]
["CUSTOMER NAME 1*",null,null,"TEL . PHONE (BILL TO TEL.PHONE)"]
["CUSTOMER NAME 2",null,null,"FAX"]
["ADDRESS*",null,null,"E-MAIL (BILL TO EMAIL ID)"]
["COUNTRY*",null,null,"VAT NUMBER /TAX ID*"]
["POST CODE *",null,null,"COMPANY REGISTRATION NO (OPTIONAL)"]
["CITY*",null,null,"LANGUAGE*","US English"]
["REGION/ STATE/PROVIDENCE*",null,null,"TAX-Number Categories "]
["TRANSPORTATION ZONE*","US00AK-US Alaska",null,"US01 - US Tax Identification Number            "]
["IF PO BOX ADDRESS",null,null,"NA-Not Applicable"]
["1. PO BOX",null,null,"NA-Not Applicable"]
["2. POSTAL CODE"]
["3. COMPANY POSTAL CODE"]
[]
[]
["BUSINESS / SALES & CREDIT DETAILS"]
[]
["CURRENCY INTO ERP SYSTEM*","USD"]
["INCO TERMS*","DAP Delivered at Place"]
["INCO TERMS LOCATION","NA Not Applicable"]
[" Freight Terms (INCO TERMS LOCATION 2)*","Prepaid"]
["CREDIT LIMIT REQUESTED WITH CURRENCY*"]
["PAYMENT TERMS*"]
["SEARCH TERM SAP*",{"$f":"_xlfn.CONCAT(B18,\" \",B19)","v":" "}]
[]
[]
[]
["COMPANY CODE DATA"]
[]
["RECONCILIATION ACCOUNT*","12100001  Accounts Receivable - Trade"]
["PAYMENT METHOD"]
[]
[]
["SALES AREA DATA"]
[]
["CUSTOMER GROUP (CHANNEL) - GLOBAL FIELDS*","08- Distrbtr(Wholesaler)",null,"PRICE LIST*","FB- ACD Dom.AutoCall.dlr"]
["ADDITIONAL DATA - CUSTOMER GROUP 2*","100- Strat./Glob.Account",null,"DELIVERY PRIORITY*","02- Normal item"]
["ADDITIONAL DATA - CUSTOMER GROUP 5 (SUB CHANNEL)","500- Atocal N America Dlr",null,"CUSTOMER TAX CLASSIFICATION*","0 Tax Exempt"]
["SALES DISTRICT*","ZZ0002- North America",null,"ACCOUNT ASSISGNMENT GROUP","Z1 Local Sales"]
["SALES OFFICE*","CH10 - Fire Detection Office",null,"COMPLETE DELIVERY","Blank - For Partial Delivery"]
["SALES GROUP*","CH1 - JCI Fire Detection",null,"SHIPPING CONDITION"]
["PRICE GROUP*","10- Level10",null,"ORDER BLOCK (SALES VIEW)"]
[]
[]
["PARTNER FUNCTIONS"]
[]
["SOLD TO"]
["SHIP TO"]
["BILL TO"]
["PAYER"]
["Intl Freight Forwarder (CR) Optional"]
["Default Carrier (TF)  Optional"]
[]
[]
["CONTACT PERSON NAME"]
[]
["FIRST NAME*"]
["LAST NAME*"]
["E-MAIL*"]
["TELEPHONE"]
["FAX"]
[]
[]
["CHANGE CUSTOMER GENERAL DATA"]
[]
["CUSTOMER NUMBER*",null,null,"TEL . PHONE (BILL TO TEL.PHONE)"]
["CUSTOMER NAME 1",null,null,"FAX"]
["CUSTOMER NAME 2",null,null,"E-MAIL (BILL TO EMAIL)"]
["EMAIL ADDRESS",null,null,"VAT NUMBER /TAX ID"]
["ADDRESS",null,null,"LANGUAGE"]
["COUNTRY"]
["POST CODE",null,null,"CONTACT PERSON DETAILS"]
["CITY",null,null,"FIRST NAME"]
["REGION/ STATE/PROVIDENCE",null,null,"LAST NAME"]
["TRANSPORTATION ZONE",null,null,"E-MAIL"]
["IF PO BOX ADDRESS"]
["1. PO BOX"]
["2. POSTAL CODE"]
["3. COMPANY POSTAL CODE"]
[]
[]
["CHANGE CUSTOMER SALES AREA DATA"]
[]
["CUSTOMER NUMBER*",null,null,"PRICE LIST","NA-Not Applicable"]
["BUSINESS UNIT (SALES ORGANIZATION)","N60-Fire Detection",null,"DELIVERY PRIORITY","NA-Not Applicable"]
["INCO TERMS","ZNA Not Applicable",null,"CUSTOMER TAX CLASSIFICATION"]
["INCO TERMS LOCATION",null,null,"ACCOUNT ASSISGNMENT GROUP"]
["PAYMENT TERMS",null,null,"COMPLETE DELIVERY","Blank - For Partial Delivery"]
["CUSTOMER GROUP (CHANNEL) - GLOBAL FIELDS","NA Not Applicable",null,"SHIPPING CONDITION"]
["ADDITIONAL DATA - CUSTOMER GROUP 2","NA Not Applicable",null,"ORDER BLOCK (SALES VIEW)"]
["ADDITIONAL DATA - CUSTOMER GROUP 5 (SUB CHANNEL)","NA Not Applicable"]
["SALES DISTRICT",null,null,"PARTNER FUNCTIONS"]
["SALES OFFICE",null,null,"SOLD TO"]
["SALES GROUP",null,null,"SHIP TO"]
["PRICE GROUP","NA-Not Applicable",null,"BILL TO"]
["TARGET SYSTEM",null,null,"PAYER"]

{"sheet":"Attributes Description","index":1,"n_rows":38,"n_cols":4,"rows_kept":38,"cut":false,"hidden":false,"merged":[]}
[]
[null,"CRF Field Name","Data Dictionary Field Name","Description"]
[null,"1. PO BOX","PO BOX","Conditional if (physical location) address is not applicable. "]
[null,"2. POSTAL CODE","PO BOX POSTAL CODE","Conditional if (physical location) address is not applicable. "]
[null,"ADDITIONAL DATA - CUSTOMER GROUP 2*","CUSTOMER GROUP 2","Customer Type"]
[null,"ADDITIONAL DATA - CUSTOMER GROUP 5 (SUB CHANNEL)","CUSTOMER GROUP 5","Customer Sub-Channel"]
[null,"ADDRESS*","SOLD_TO_ADDRESS_1","The geographic address associated with the Sold-to customer. Additional address types (Ship,Bill,Payer) Name and Address may or may not be the same as the Sold-to Customer but will be aligned, using Partner Functions. "]
[null,"CITY*","SOLD_TO_CITY","The geographic city associated with the Sold-to customer.  Additional address types (Ship,Bill,Payer) City may or may not be the same as the Sold-to Customer but will be aligned, using Partner Functions.   "]
[null,"COMPANY CODE*","COMPANY CODE","Reflective of the legal structure (Accounting)"]
[null,"COMPLETE DELIVERY","COMPLETE DELIVERY","Typically indicated on the Sales order, this is used as an indicator flag. "]
[null,"COUNTRY","SOLD_TO_COUNTRY","The country associated with the Sold-to customer.  Additional address types (Ship,Bill,Payer) Country may or may not be the same as the Sold-to Customer but will be aligned, using Partner Functions.   "]
[null,"Currency into ERP System","SOLD_TO_CURRENCY (Currency into ERP System)","Local currency of the Sold-to customer legal entity."]
[null,"CUSTOMER GROUP (CHANNEL) - GLOBAL FIELDS*","CUSTOMER GROUP(S) 1 (CHANNEL)","Market Segment"]
[null,"Customer Name","SOLD_TO_CUSTOMER_NAME (Organization or Account)","Legal (entity) name of the Sold-to Customer. Additional address types (Ship,Bill,Payer) Name and Address may or may not be the same as the Sold-to Customer but will be aligned, using Partner Functions.   "]
[null,"Customer Name2","SOLD_TO_CUSTOMER_NAME2","Additional metadata space for Name, if necessary.  "]
[null,"CUSTOMER NUMBER","CUSTOMER NUMBER, PARTNER NUMBER (Address Types)","Sales Partner Number"]
[null,"Default Carrier (TF)  Optional","Default Carrier (TF) Optional","Ex. UPS, DHL, etc"]
[null,"DELIVERY PRIORITY*","SOLD_TO_DELIVERY_PRIORITY","Delivery priority can be assigned to either a particular material or to a combination of customer and material. When you process deliveries collectively, you can use delivery priority as one of the selection criteria."]
[null,"E-MAIL (BILL TO EMAIL ID)","CONTACT EMAIL (Bill to email ID)","Email address for Accounts Payable Contact. "]
[null,"FAX","CONTACT FAX (Bill to)","Phone number for Accounts Payable Contact.  Need to verify who this phone number is for, either Sales or customer's account payable contact. "]
[null,"Freight Terms (INCO TERMS LOCATION 2)*","SOLD_TO_INCOTERMS 2","Rules or International pre-defined Commercial Terms published by the International Chamber of Commerce (ICC) Note: Inco Term 1 and 3"]
[null,"INCO TERMS*","SOLD_TO_INCOTERMS ","Rules or International pre-defined Commercial Terms published by the International Chamber of Commerce (ICC) Note: Inco Term 1 and 2"]
[null,"Intl Freight Forwarder (CR) Optional","Intl Freight Forwarded (CR) Optional ","Forwarders coordinate transportation details between international sellers and buyers so that goods get to where they need to go. "]
[null,"PARTNER FUNCTIONS","PARTNER FUNCTIONS, ACCOUNT RELATIONSHIPS","Address types based on how JCI interacts with the Customer (Sold, Ship, Bill, Payer, etc.)  "]
[null,"PAYMENT TERMS*","SOLD_TO_PAYMENT_TERMS","Trade (payment) terms for the Sold-to customer legal entity"]
[null,"PRICE GROUP*","CUSTOMER PRICE GROUP","Price code for a customer group  Mandatory but defaulted to a value for many deployments"]
[null,"PRICE LIST*","CUSTOMER PRICE LIST","Identifies a price list or other condition type (for example, a surcharge or discount)."]
[null,"RECONCILIATION ACCOUNT*","RECONCILATION ACCOUNT ","GL account that receives posting from subsidiary ledgers. "]
[null,"SALES DISTRICT*","SALES DISTRICT","Corresponds to the JCI defined regions. "]
[null,"SALES GROUP","SALES GROUP","A group of branches that provides sales and service support to a customer. "]
[null,"SALES OFFICE","SALES OFFICE","Sales office representative of the Branch. "]
[null,"SEARCH_TERM 1","SEARCH_TERM 1","This field is Mandatory to key in short name or search name for customer at customer create which will be your search term to search customer in SAP. "]
[null,"SHIPPING CONDITION","SOLD_TO_SHIPPING_CONDITION","General shipping strategy for the delivery of goods from the vendor (Global Products/ drop-ship supplier) to the customer.  E.g. Standard, Express Delivery, Customer Pick-Up"]
[null,"STATE","SOLD_TO_REGION/ STATE/PROVINCE","The geographic state / province associated with the Sold-to customer.  Additional address types (Ship,Bill,Payer) State/Providence may or may not be the same as the Sold-to Customer but will be aligned, using Partner Functions.   "]
[null,"TEL . PHONE (BILL TO TEL.PHONE)","CONTACT PHONE (for the Bill to)","Phone number for Accounts Payable Contact.  Need to verify who this phone number is for, either Sales or customer's account payable contact. "]
[null,"TRANSPORTATION ZONE*","TRANSPORTATION ZONE","A group of locations (countries, etc.) that are considered a collective in planning the transportation of products. "]
[null,"VAT NUMBER /TAX ID*","BUSINESS PARTNER TAX NUMBER","Each country has unique tax requirements (reference element tax number categories).  For each category, a tax number is required. "]
[null,"ZIP CODE","SOLD_TO_ZIP_/_POSTAL_CODE","The geographic zip / postal code associated with the Sold-to customer. Additional address types (Ship,Bill,Payer) Postal Code may or may not be the same as the Sold-to Customer but will be aligned, using Partner Functions.   "]

{"sheet":"LOVs","index":2,"n_rows":196,"n_cols":19,"rows_kept":196,"cut":false,"hidden":false,"merged":[]}
["Change Request Types","Inco Terms","Freight Terms (Incoterm Location 2) ","Reconciliation Account","Customer Groups","Customer Group 2","Customer Group 5","Sales District","Price Group","Price List","Shipping Conditions","Delivery Priority","Customer Tax Classification","Account Assignment Group","Complete Delivery","Order Block","Business Unit (Sales Entity)","TZ Description","Tax Category "]
["1. Create Third Party (Sold To)","CFR Costs and Freight","Prepaid","12100001  Accounts Receivable - Trade","02- Intercompany","100- Strat./Glob.Account","101- Contracting","ZZ0001- Europe","10- Level10","F1- SIN Simplx India Dlr","11- Ocean","01- High","0 Tax Exempt","Z1 Foreign Sales","X- For Complete Delivery","01- Overall Block","N10 - NA Applied","INT00EU-Europe","AD3 - Andorra: Tax Register Number (NRT)      "]
["2. Create Third Party (Payer)","CIF Costs, Insurance & Freight","Prepaid+Add","29110001 AR - InterCompany","03- Manufacturing Reps","101- National Account","102- Service","ZZ0002- North America","11- Level11","FA- ACC Autocall Can Dlr","12- Ground","02- Normal item","1 Liable for Taxes","Z2 Local Sales","Blank - For Partial Delivery","02- Partner Blocked","N11 - NA Air Distribution","INT00ME-Middle East","AE0 - UAE: VAT Registration Number            "]
["3. Create Third Party (Ship To)","CIP Carriage and Insurance Paid to","Customer Collect",null,"04- Original Equip Mfg","102- Corporate Customer","103- Aftermarket Parts","ZZ0003- Latin America","12- Level12","FB- ACD Dom.AutoCall.dlr","13- 1 Day Air (10:30 AM)","03- Low",null,"Z3 Inter Company Sales",null,"03- Only Cash Allowed","N20 - NA Ind Ref","INT00AS-Asia","AE1 - UAE: Tax Identification Number (TIN)    "]
["4. Create Third Party (Bill To)","CPT Carriage Paid to","Third Party Billing",null,"05- Retailers","103- Intercompany","104- Product Distribution","ZZ0004- Asia Pacific","13- Level13","FC- CAD Dom.AC.Dlr. CWSI","14- 1 Day Air (3:00 PM)","24- Fast Track",null,null,null,"04- E-Invoicing","N30 - NA Ducted Systems","INT00AF-Africa","AO3 - Angola: Tax Identification Number (NIF) "]
["5. Create Inter Company Customers Sold To/Ship To (INCP)","DAP Delivered at Place",null,null,"06- Contr/Dlr/Instlr/Int","104- Affiliate/Joint Vent","105- HVAC","ZZ0005- Middle East & Africa","14- Level14","FD- ACL Autcall APAC Dlr","15- 2 Day Air","25- Emergency",null,null,null,null,"N40 - NA Marine","INT00SA-South America","AR1A - Argentina: CUIT Number                  "]
["6 .Create Inter Company Bill To/Payer (ZICC)","DDP Delivered Duty Paid",null,null,"07- eCommerce","105- Others","106- Marine / Navy",null,"15- Level15","FE- ANG AnsulGrtYarmouth","19- International Air",null,null,null,null,null,"N50 - NA Controls","INT00CA-Canada","AR1B - Argentina: CUIL Number                  "]
["7. Change Customer General Data","DPU Delivered at Place",null,null,"08- Distrbtr(Wholesaler)","106- Branch","107- Wholesaler",null,"16- Level16","FF- ANS Ansul TransferPr","20- IntrnationlAirPriori",null,null,null,null,null,"N60 - NA Fire Detection","INT00MEX-Mexico","AR1C - Argentina: CDI Number                   "]
["8. Change Customer Sales Area Data","EXW Ex Works",null,null,"09- Commission Agent","107- Intra-Company","108- AuthorisedDistributo",null,"17- Level17","FG- AUZ New Zealand","21- 3 Day Air",null,null,null,null,null,"N61 - NA FS-Intrusion","US00AK-US Alaska","AR1D - Argentina: DNI Number                   "]
["9. Change InterCompany Customers","FAS Free Alongside Ship",null,null,"10- GP Direct-Owner",null,"109- BSNA USA",null,"18- Level18","FH- CWU CWSI Dealer","22- 1 Day Air (8:00 AM)",null,null,null,null,null,"N62 - NA Security-ACVS","US00AL-US Alabama","AR1Z - Argentina: without ID                   "]
["10. Block/Unblock Third Party (Sold To)","FCA Free Carrier",null,null,"11- GP Direct-GP Branch",null,"110- BSNA Canada",null,"19- Level19","FI- SCP BSNA US Br TrPr",null,null,null,null,null,null,"N63 - NA CORPORATE","US00AR-US Arkansas","AR2 - Argentina: Income Tax Number            "]
["11. Block/Unblock Customer - Custom","FOB Free on Board",null,null,"15- Branch Field Org NA",null,"500- Atocal N America Dlr",null,"20- Level20","FJ- DI01 BSNA US Cr TrPr",null,null,null,null,null,null,"N70 - NA Fire Suppression","US00AZ-US Arizone","AR3 - NIP number or CM number                 "]
[null,"Z01 Freight Applied",null,null,"16- Branch Field EMEALA",null,"501- Autocal/CWSI Dom Dlr",null,"GS- GSA Pricing","FK- SDE BSNA US LstPr",null,null,null,null,null,null,"N80 - NA JCH","US00CA-US California","AT0 - Austria: VAT Registration Number        "]
[null,"Z02 Freight Exempt",null,null,"17- Branch Field OrgAPAC",null,"502- CWSI Dlr",null,null,"FL- SGI BAAN 112 to S4",null,null,null,null,null,null,"E10 - EMEA Applied","US00CO-US Colorado","AU0 - Australia: ABN                          "]
[null,"Z03 Freight EXEMPT 50%",null,null,"20- Others",null,"503- Ansul Dealers",null,null,"FM- GLP Simplx APAC Dlr",null,null,null,null,null,null,"E11 - EMEA Air Distr.","US00CT-US Connecticut","BE0 - Belgium: VAT Registration Number        "]
[null,"Z04 Freight Third Party Billed",null,null,null,null,"504- Midl east Simplx Dlr",null,null,"FN- SXC BSNA Ca Br TrPr",null,null,null,null,null,null,"E20 - EMEA Ind Ref","US00DC-US Washington DC","BE1 - Belgium: Enterprise Number              "]
[null,"Z05 Freight Collect",null,null,null,null,"505- Midl east Atocal Dlr",null,null,"FO- SCT BSNA Ca Cr TrPr",null,null,null,null,null,null,"E30 - EMEA Ducted Systems","US00DE-US Delaware","BE2 - Belgium: VAT Reg. No. w/o country code  "]
[null,"Z06 Freight Exempt m",null,null,null,null,"506- APAC Simplex Dealers",null,null,"FP- SDC BSNA Can LPr",null,null,null,null,null,null,"E40 - EMEA Marine","US00FL-US Florida","BG0 - Bulgaria: Vat Registration Number       "]
[null,"ZNA Not Applicable",null,null,null,null,"507- APAC Autocall Dealer",null,null,"FQ- IND Ind Mfg Company",null,null,null,null,null,null,"E50 - EMEA Controls","US00GA-US Georgia","BG1 - Bulgaria: Unified ID Code               "]
[null,null,null,null,null,null,"508- LATAM Dealers",null,null,"FR- JCI JCI/TIS SmplxC/S",null,null,null,null,null,null,"E60 - EMEA Fire Detection","US00HI-US Hawaii","BG2 - Bulgaria: Personal ID                   "]
[null,null,null,null,null,null,"509- NAmerica Simplex Dlr",null,null,"FS- LAT Smplx LATAM Dlr",null,null,null,null,null,null,"E61 - EMEA FS-Intrusion","US00IA-US Iowa","BG3 - Bulgaria: Social Security Number        "]
[null,null,null,null,null,null,"510- New Zealand",null,null,"FT- MEA Aut ME Dlr",null,null,null,null,null,null,"E62 - EMEA Security-ACVS","US00ID-US Idaho","BH0 - Bahrain: VAT Registration Number        "]
[null,null,null,null,null,null,"511- Space Age",null,null,"FU- MES Smp ME Dlr",null,null,null,null,null,null,"E70 - EMEA Fire Suppression","US00IL-US Illinois","BM3 - Bermuda: Tax Identification Number      "]
[null,null,null,null,null,null,null,null,null,"FV- SAE Spc Age Elctron",null,null,null,null,null,null,"E80 - EMEA JCH","US00IN-US Indiana","BR1 - Brazil: CNPJ Number                     "]
[null,null,null,null,null,null,null,null,null,"FW- USL Ext US Dlr",null,null,null,null,null,null,null,"US00KS-US Kansas","BR2 - Brazil: CPF Number                      "]
[null,null,null,null,null,null,null,null,null,"FX- RAJ Rajecko Material",null,null,null,null,null,null,null,"US00KY-US Kentucky","BR3 - Brazil: State Tax Number                "]
[null,null,null,null,null,null,null,null,null,"FY- RYN Reynosa Material",null,null,null,null,null,null,null,"US00LA-US  Louisiana","BR4 - Brazil: Municipal Tax Number            "]
[null,null,null,null,null,null,null,null,null,"FZ- TMC Total Manufactur",null,null,null,null,null,null,null,"US00MA-US Massachusetts","BW1 - Botswana: VAT Registration Number       "]
[null,null,null,null,null,null,null,null,null,"GS- GSA Customer",null,null,null,null,null,null,null,"US00MD-US Maryland","BZ1 - Belize: Social Security Number          "]
[null,null,null,null,null,null,null,null,null,"R1- Adv Exc Pricing",null,null,null,null,null,null,null,"US00ME-US Maine","BZ2 - Belize: Tax identifier (free use)       "]
[null,null,null,null,null,null,null,null,null,null,null,null,null,null,null,null,null,"US00MI-US Michigan","BZ5 - Belize: Tax Identification Number       "]
[null,null,null,null,null,null,null,null,null,null,null,null,null,null,null,null,null,"US00MN-US Minnesota","CA1 - Canada: Goods and Service Tax (GST) No. "]
[null,null,null,null,null,null,null,null,null,null,null,null,null,null,null,null,null,"US00MO-US Missouri","CA2 - Canada: Business Number                 "]
[null,null,null,null,null,null,null,null,null,null,null,null,null,null,null,null,null,"US00MS-US Mississsipi","CA3 - Canada: Provincial Sales Tax (PST) No.  "]
[null,null,null,null,null,null,null,null,null,null,null,null,null,null,null,null,null,"US00MT-US Montana","CA4 - Canada: Quebec Sales Tax (QST) No.      "]
[null,null,null,null,null,null,null,null,null,null,null,null,null,null,null,null,null,"US00NC-US Noth Carolina","CH1 - Switzerland: UID Number                 "]
[null,null,null,null,null,null,null,null,null,null,null,null,null,null,null,null,null,"US00ND-US Noth Dakota","CH2 - Switzerland: VAT Number                 "]
[null,null,null,null,null,null,null,null,null,null,null,null,null,null,null,null,null,"US00NE-US Nebraska","CI3 - Cote d'Ivoire: Tax Identification Number"]
[null,null,null,null,null,null,null,null,null,null,null,null,null,null,null,null,null,"US00NH-US New Hampshire","CL1 - Chile: RUT Number                       "]
[null,null,null,null,null,null,null,null,null,null,null,null,null,null,null,null,null,"US00NJ-US New Jersey","CM3 - Cameroon: Tax Identification Number     "]
[null,null,null,null,null,null,null,null,null,null,null,null,null,null,null,null,null,"US00NM-US New Mexico","CN0 - China: Tax Number                       "]
[null,null,null,null,null,null,null,null,null,null,null,null,null,null,null,null,null,"US00NV-US Nevada","CN5 - China: Tax Number                       "]
[null,null,null,null,null,null,null,null,null,null,null,null,null,null,null,null,null,"US00NY-US New York","CO1 - Colombia: NIT Number                    "]
[null,null,null,null,null,null,null,null,null,null,null,null,null,null,null,null,null,"US00OH-US Ohio","CR3 - Costa Rica: Tax Identification Number   "]
[null,null,null,null,null,null,null,null,null,null,null,null,null,null,null,null,null,"US00OK-US Oklahoma","CW3 - Curacao:Tax Identification Number       "]
[null,null,null,null,null,null,null,null,null,null,null,null,null,null,null,null,null,"US00OR-US Oregon","CY0 - Cyprus: VAT Registration Number         "]
[null,null,null,null,null,null,null,null,null,null,null,null,null,null,null,null,null,"US00PA-US Pennsylvania","CZ0 - Czech Republic: VAT Registration Number "]
[null,null,null,null,null,null,null,null,null,null,null,null,null,null,null,null,null,"US00PR-US Puerto Rico","CZ1 - Czech Republic: DIC Number              "]
[null,null,null,null,null,null,null,null,null,null,null,null,null,null,null,null,null,"US00RI-US Rhode Island","CZ2 - Czech Republic: ICO Number              "]
[null,null,null,null,null,null,null,null,null,null,null,null,null,null,null,null,null,"US00SC-US South Carolina","DE0 - Germany: VAT Registration Number        "]
[null,null,null,null,null,null,null,null,null,null,null,null,null,null,null,null,null,"US00SD-US South Dakota","DE1 - Germany: Income Tax Number (§48)        "]
[null,null,null,null,null,null,null,null,null,null,null,null,null,null,null,null,null,"US00TN-US Tennesse","DE2 - Germany: VAT Number (Credit Proc. §14)  "]
[null,null,null,null,null,null,null,null,null,null,null,null,null,null,null,null,null,"US00TX-US Texas","DE3 - Germany: Elster Tax Number              "]
[null,null,null,null,null,null,null,null,null,null,null,null,null,null,null,null,null,"US00UT-US Utah","DE4 - Germany: Tax Number                     "]
[null,null,null,null,null,null,null,null,null,null,null,null,null,null,null,null,null,"US00VA-US Virginia","DE5 - Germany: Tax Number mapped to LFA1-STCD2"]
[null,null,null,null,null,null,null,null,null,null,null,null,null,null,null,null,null,"US00VT-US Vermont","DK0 - Denmark: VAT Registration Number        "]
[null,null,null,null,null,null,null,null,null,null,null,null,null,null,null,null,null,"US00WA-US Washington","DK2 - Denmark: Tax Number                     "]
[null,null,null,null,null,null,null,null,null,null,null,null,null,null,null,null,null,"US00WI-US Wisconsin","DZ1 - Algeria:NIF Number                      "]
[null,null,null,null,null,null,null,null,null,null,null,null,null,null,null,null,null,"US00WV-US West Virginia","EE0 - Estonia: VAT Registration Number        "]
[null,null,null,null,null,null,null,null,null,null,null,null,null,null,null,null,null,"US00WY-US Wyoming","EG3 - Egypt: Tax Identification Number        "]
[null,null,null,null,null,null,null,null,null,null,null,null,null,null,null,null,null,null,"ES0 - Spain: VAT Registration Number          "]
[null,null,null,null,null,null,null,null,null,null,null,null,null,null,null,null,null,null,"ES1 - Spain: NIF Number                       "]
[null,null,null,null,null,null,null,null,null,null,null,null,null,null,null,null,null,null,"ES5 - Spain: DIR3 codes                       "]
[null,null,null,null,null,null,null,null,null,null,null,null,null,null,null,null,null,null,"FI0 - Finland: VAT Registration Number        "]
[null,null,null,null,null,null,null,null,null,null,null,null,null,null,null,null,null,null,"FJ3 - Fiji: VAT Registration Number           "]
[null,null,null,null,null,null,null,null,null,null,null,null,null,null,null,null,null,null,"FR0 - France: VAT Registration Number         "]
[null,null,null,null,null,null,null,null,null,null,null,null,null,null,null,null,null,null,"FR1 - France: SIRET Number                    "]
[null,null,null,null,null,null,null,null,null,null,null,null,null,null,null,null,null,null,"FR2 - France: SIREN Number                    "]
[null,null,null,null,null,null,null,null,null,null,null,null,null,null,null,null,null,null,"GB0 - United Kingdom: VAT Registration Number "]
[null,null,null,null,null,null,null,null,null,null,null,null,null,null,null,null,null,null,"GB1 - United Kingdom: Passport Number         "]
[null,null,null,null,null,null,null,null,null,null,null,null,null,null,null,null,null,null,"GB2 - United Kingdom: National Insurance Numbe"]
[null,null,null,null,null,null,null,null,null,null,null,null,null,null,null,null,null,null,"GB3 - United Kingdom: Company Registration Num"]
[null,null,null,null,null,null,null,null,null,null,null,null,null,null,null,null,null,null,"GB4 - United Kingdom: Unique Tax Reference    "]
[null,null,null,null,null,null,null,null,null,null,null,null,null,null,null,null,null,null,"GE3 - Georgia:Tax Identification Number       "]
[null,null,null,null,null,null,null,null,null,null,null,null,null,null,null,null,null,null,"GH1 - Ghana: Taxpayer Identification Number   "]
[null,null,null,null,null,null,null,null,null,null,null,null,null,null,null,null,null,null,"GR0 - Greece: VAT Registration Number         "]
[null,null,null,null,null,null,null,null,null,null,null,null,null,null,null,null,null,null,"GR1 - Greece: Personal ID                     "]
[null,null,null,null,null,null,null,null,null,null,null,null,null,null,null,null,null,null,"GR2 - Greece: AFM Number                      "]
[null,null,null,null,null,null,null,null,null,null,null,null,null,null,null,null,null,null,"HK3 - Hong Kong:  Business Registration Number"]
[null,null,null,null,null,null,null,null,null,null,null,null,null,null,null,null,null,null,"HR0 - Croatia : VAT Registration Number       "]
[null,null,null,null,null,null,null,null,null,null,null,null,null,null,null,null,null,null,"HR1 - Croatia. JMBG Number                    "]
[null,null,null,null,null,null,null,null,null,null,null,null,null,null,null,null,null,null,"HR2 - Croatia: OIB Number                     "]
[null,null,null,null,null,null,null,null,null,null,null,null,null,null,null,null,null,null,"HU0 - Hungary: VAT Registration Number        "]
[null,null,null,null,null,null,null,null,null,null,null,null,null,null,null,null,null,null,"HU1 - Hungary: Tax Number                     "]
[null,null,null,null,null,null,null,null,null,null,null,null,null,null,null,null,null,null,"ID1 - Indonesia: NPWP Number                  "]
[null,null,null,null,null,null,null,null,null,null,null,null,null,null,null,null,null,null,"ID3 - Indonesia: NPPKP Number                 "]
[null,null,null,null,null,null,null,null,null,null,null,null,null,null,null,null,null,null,"IE0 - Ireland: VAT Registration Number        "]
[null,null,null,null,null,null,null,null,null,null,null,null,null,null,null,null,null,null,"IE1 - Ireland:Company Registration Number(CRN)"]
[null,null,null,null,null,null,null,null,null,null,null,null,null,null,null,null,null,null,"IL0 - Israel: VAT Registration Number         "]
[null,null,null,null,null,null,null,null,null,null,null,null,null,null,null,null,null,null,"IL1 - Israel: Tax Number1                     "]
[null,null,null,null,null,null,null,null,null,null,null,null,null,null,null,null,null,null,"IL2 - Israel: Tax Number2                     "]
[null,null,null,null,null,null,null,null,null,null,null,null,null,null,null,null,null,null,"IM0 - Isle Of Man: VAT Registration Number    "]
[null,null,null,null,null,null,null,null,null,null,null,null,null,null,null,null,null,null,"IN2 - India: Tax Identification Number (TIN)  "]
[null,null,null,null,null,null,null,null,null,null,null,null,null,null,null,null,null,null,"IN3 - India: GST Identification Number(GSTIN) "]
[null,null,null,null,null,null,null,null,null,null,null,null,null,null,null,null,null,null,"IR3 - Iran: Tax Identification Number         "]
[null,null,null,null,null,null,null,null,null,null,null,null,null,null,null,null,null,null,"IS3 - Iceland: Identification number          "]
[null,null,null,null,null,null,null,null,null,null,null,null,null,null,null,null,null,null,"IT0 - Italy: VAT Registration Number          "]
[null,null,null,null,null,null,null,null,null,null,null,null,null,null,null,null,null,null,"IT1 - Italy: Codice Fiscale                   "]
[null,null,null,null,null,null,null,null,null,null,null,null,null,null,null,null,null,null,"IT2 - Italy: IVA Code                         "]
[null,null,null,null,null,null,null,null,null,null,null,null,null,null,null,null,null,null,"IT4 - Italy: IPA Code                         "]
[null,null,null,null,null,null,null,null,null,null,null,null,null,null,null,null,null,null,"JP3 - Japan: Corporate number                 "]
[null,null,null,null,null,null,null,null,null,null,null,null,null,null,null,null,null,null,"KE3 - Kenya: PIN number                       "]
[null,null,null,null,null,null,null,null,null,null,null,null,null,null,null,null,null,null,"KP3 - North Korea:Business Registration number"]
[null,null,null,null,null,null,null,null,null,null,null,null,null,null,null,null,null,null,"KR1 - South Korea: Corporation ID or Personal "]
[null,null,null,null,null,null,null,null,null,null,null,null,null,null,null,null,null,null,"KR2 - South Korea: VAT Registration Number    "]
[null,null,null,null,null,null,null,null,null,null,null,null,null,null,null,null,null,null,"KW0 - Kuwait: VAT Registration Number         "]
[null,null,null,null,null,null,null,null,null,null,null,null,null,null,null,null,null,null,"KW1 - Kuwait: Tax Identification Number (TIN) "]
[null,null,null,null,null,null,null,null,null,null,null,null,null,null,null,null,null,null,"KZ1 - Kazakhstan: RNN Number                  "]
[null,null,null,null,null,null,null,null,null,null,null,null,null,null,null,null,null,null,"LC3 - St. Lucia: Tax Identification Number    "]
[null,null,null,null,null,null,null,null,null,null,null,null,null,null,null,null,null,null,"LT0 - Lithuania: VAT Registration Number      "]
[null,null,null,null,null,null,null,null,null,null,null,null,null,null,null,null,null,null,"LU0 - Luxembourg: VAT Registration Number     "]
[null,null,null,null,null,null,null,null,null,null,null,null,null,null,null,null,null,null,"LV0 - Latvia: VAT Registration Number         "]
[null,null,null,null,null,null,null,null,null,null,null,null,null,null,null,null,null,null,"MA3 - Morocco: Tax Identification Number      "]
[null,null,null,null,null,null,null,null,null,null,null,null,null,null,null,null,null,null,"MC0 - Monaco: VAT Registration Number         "]
[null,null,null,null,null,null,null,null,null,null,null,null,null,null,null,null,null,null,"MC1 - Monaco: SIRET Number                    "]
[null,null,null,null,null,null,null,null,null,null,null,null,null,null,null,null,null,null,"MC2 - Moanco: SIREN Number                    "]
[null,null,null,null,null,null,null,null,null,null,null,null,null,null,null,null,null,null,"MT0 - Malta: VAT Registration Number          "]
[null,null,null,null,null,null,null,null,null,null,null,null,null,null,null,null,null,null,"MU1 - Mauritius: Tax Account Number (TAN)     "]
[null,null,null,null,null,null,null,null,null,null,null,null,null,null,null,null,null,null,"MW1 - Malawi: Taxpayer Identification Number  "]
[null,null,null,null,null,null,null,null,null,null,null,null,null,null,null,null,null,null,"MX1 - Mexico: RFC Number                      "]
[null,null,null,null,null,null,null,null,null,null,null,null,null,null,null,null,null,null,"MX2 - Mexico: VAT Liability                   "]
[null,null,null,null,null,null,null,null,null,null,null,null,null,null,null,null,null,null,"MX3 - Mexico: CURP Number                     "]
[null,null,null,null,null,null,null,null,null,null,null,null,null,null,null,null,null,null,"MY1 - Malaysia : GST Number                   "]
[null,null,null,null,null,null,null,null,null,null,null,null,null,null,null,null,null,null,"MZ1 - Mozambique: Tax Number (NUIT)           "]
[null,null,null,null,null,null,null,null,null,null,null,null,null,null,null,null,null,null,"NA1 - Namibia: VAT Registration Number        "]
[null,null,null,null,null,null,null,null,null,null,null,null,null,null,null,null,null,null,"NG3 - Nigeria: Tax Identification Number      "]
[null,null,null,null,null,null,null,null,null,null,null,null,null,null,null,null,null,null,"NL0 - Netherlands: VAT Registration Number    "]
[null,null,null,null,null,null,null,null,null,null,null,null,null,null,null,null,null,null,"NL1 - Netherlands: Aansluitnummer UWV         "]
[null,null,null,null,null,null,null,null,null,null,null,null,null,null,null,null,null,null,"NL2 - Netherlands: BSN Number                 "]
[null,null,null,null,null,null,null,null,null,null,null,null,null,null,null,null,null,null,"NL3 - Netherlands: Loonbelastingnummer        "]
[null,null,null,null,null,null,null,null,null,null,null,null,null,null,null,null,null,null,"NO1 - Norway : VAT Number                     "]
[null,null,null,null,null,null,null,null,null,null,null,null,null,null,null,null,null,null,"NO2 - Norway: Tax Number                      "]
[null,null,null,null,null,null,null,null,null,null,null,null,null,null,null,null,null,null,"NZ1 - New Zealand: Goods & Services Tax (GST) "]
[null,null,null,null,null,null,null,null,null,null,null,null,null,null,null,null,null,null,"NZ3 - New Zealand: NZBN Number                "]
[null,null,null,null,null,null,null,null,null,null,null,null,null,null,null,null,null,null,"OM0 - Oman: VAT Registration Number           "]
[null,null,null,null,null,null,null,null,null,null,null,null,null,null,null,null,null,null,"PA3 - Panama: RUC Number                      "]
[null,null,null,null,null,null,null,null,null,null,null,null,null,null,null,null,null,null,"PE1 - Peru: RUC Number                        "]
[null,null,null,null,null,null,null,null,null,null,null,null,null,null,null,null,null,null,"PH1 - Philippines: Taxpayer ID Number         "]
[null,null,null,null,null,null,null,null,null,null,null,null,null,null,null,null,null,null,"PH3 - Philippines: New Taxpayer ID Number     "]
[null,null,null,null,null,null,null,null,null,null,null,null,null,null,null,null,null,null,"PL0 - Poland: VAT Registration Number         "]
[null,null,null,null,null,null,null,null,null,null,null,null,null,null,null,null,null,null,"PL1 - Poland: NIP Number                      "]
[null,null,null,null,null,null,null,null,null,null,null,null,null,null,null,null,null,null,"PL2 - Poland: PESEL Number                    "]
[null,null,null,null,null,null,null,null,null,null,null,null,null,null,null,null,null,null,"PT0 - Portugal: VAT Registration Number       "]
[null,null,null,null,null,null,null,null,null,null,null,null,null,null,null,null,null,null,"PT1 - Portugal: NIF Number                    "]
[null,null,null,null,null,null,null,null,null,null,null,null,null,null,null,null,null,null,"QA0 - Qatar: VAT Registration Number          "]
[null,null,null,null,null,null,null,null,null,null,null,null,null,null,null,null,null,null,"QA1 - Qatar: Tax Identification Number (TIN)  "]
[null,null,null,null,null,null,null,null,null,null,null,null,null,null,null,null,null,null,"RO0 - Romania: VAT Registration Number        "]
[null,null,null,null,null,null,null,null,null,null,null,null,null,null,null,null,null,null,"RO1 - Romania: Tax Number                     "]
[null,null,null,null,null,null,null,null,null,null,null,null,null,null,null,null,null,null,"RS1 - Serbia: JMBG Number or PIB Number       "]
[null,null,null,null,null,null,null,null,null,null,null,null,null,null,null,null,null,null,"RU1 - Russia: INN                             "]
[null,null,null,null,null,null,null,null,null,null,null,null,null,null,null,null,null,null,"RU2 - Russia: OKPO Code                       "]
[null,null,null,null,null,null,null,null,null,null,null,null,null,null,null,null,null,null,"RU3 - Russia: KPP Number                      "]
[null,null,null,null,null,null,null,null,null,null,null,null,null,null,null,null,null,null,"RU4 - Russia: OFK Number                      "]
[null,null,null,null,null,null,null,null,null,null,null,null,null,null,null,null,null,null,"SA0 - Saudi Arabia: VAT Registration Number   "]
[null,null,null,null,null,null,null,null,null,null,null,null,null,null,null,null,null,null,"SA1 - Saudi Arabia: Tax Identification Number "]
[null,null,null,null,null,null,null,null,null,null,null,null,null,null,null,null,null,null,"SB3 - Solomon islands: TIN Number             "]
[null,null,null,null,null,null,null,null,null,null,null,null,null,null,null,null,null,null,"SC1 - Seychelles: Tax Identification Number   "]
[null,null,null,null,null,null,null,null,null,null,null,null,null,null,null,null,null,null,"SE0 - Sweden: VAT Registration Number         "]
[null,null,null,null,null,null,null,null,null,null,null,null,null,null,null,null,null,null,"SE2 - Sweden: Organization Registration Number"]
[null,null,null,null,null,null,null,null,null,null,null,null,null,null,null,null,null,null,"SG1 - Singapore: GST Registration number      "]
[null,null,null,null,null,null,null,null,null,null,null,null,null,null,null,null,null,null,"SI0 - Slovenia: VAT Registration Number       "]
[null,null,null,null,null,null,null,null,null,null,null,null,null,null,null,null,null,null,"SI1 - Slovenia: Tax Number                    "]
[null,null,null,null,null,null,null,null,null,null,null,null,null,null,null,null,null,null,"SK0 - Slovakia: VAT Registration Number       "]
[null,null,null,null,null,null,null,null,null,null,null,null,null,null,null,null,null,null,"SK1 - Slovakia: DIC Number                    "]
[null,null,null,null,null,null,null,null,null,null,null,null,null,null,null,null,null,null,"SK2 - Slovakia: ICO Number                    "]
[null,null,null,null,null,null,null,null,null,null,null,null,null,null,null,null,null,null,"SN3 - Senegal: NINEA Number                   "]
[null,null,null,null,null,null,null,null,null,null,null,null,null,null,null,null,null,null,"SS3 - South Sudan: TIN Number                 "]
[null,null,null,null,null,null,null,null,null,null,null,null,null,null,null,null,null,null,"SZ1 - Swaziland:Taxpayer Identification Number"]
[null,null,null,null,null,null,null,null,null,null,null,null,null,null,null,null,null,null,"TH1 - Thailand: Personal ID                   "]
[null,null,null,null,null,null,null,null,null,null,null,null,null,null,null,null,null,null,"TH3 - Thailand: Tax ID                        "]
[null,null,null,null,null,null,null,null,null,null,null,null,null,null,null,null,null,null,"TR1 - Turkey: Tax Office                      "]
[null,null,null,null,null,null,null,null,null,null,null,null,null,null,null,null,null,null,"TR2 - Turkey: Tax number                      "]
[null,null,null,null,null,null,null,null,null,null,null,null,null,null,null,null,null,null,"TW1 - Taiwan: GUI Registration Number         "]
[null,null,null,null,null,null,null,null,null,null,null,null,null,null,null,null,null,null,"TW2 - Taiwan: Tax Registration Number         "]
[null,null,null,null,null,null,null,null,null,null,null,null,null,null,null,null,null,null,"TZ3 - Tanzania:Tax Identification number (TIN)"]
[null,null,null,null,null,null,null,null,null,null,null,null,null,null,null,null,null,null,"UA1 - Ukraine: INN                            "]
[null,null,null,null,null,null,null,null,null,null,null,null,null,null,null,null,null,null,"UA2 - Ukraine:  EDRPOU Number or DRFO Number  "]
[null,null,null,null,null,null,null,null,null,null,null,null,null,null,null,null,null,null,"UA3 - Ukraine: NDS Number                     "]
[null,null,null,null,null,null,null,null,null,null,null,null,null,null,null,null,null,null,"UG1 - Uganda: Taxpayer Identification Number  "]
[null,null,null,null,null,null,null,null,null,null,null,null,null,null,null,null,null,null,"US01 - US Tax Identification Number            "]
[null,null,null,null,null,null,null,null,null,null,null,null,null,null,null,null,null,null,"US1 - USA: Social Security Number             "]
[null,null,null,null,null,null,null,null,null,null,null,null,null,null,null,null,null,null,"US2 - USA: Employer ID Number                 "]
[null,null,null,null,null,null,null,null,null,null,null,null,null,null,null,null,null,null,"US3 - USA: Tax Number 3                       "]
[null,null,null,null,null,null,null,null,null,null,null,null,null,null,null,null,null,null,"US4 - USA: Unique Form Identifier             "]
[null,null,null,null,null,null,null,null,null,null,null,null,null,null,null,null,null,null,"US5 - USA: GIIN Number                        "]
[null,null,null,null,null,null,null,null,null,null,null,null,null,null,null,null,null,null,"UY3 - Uruguay: RUT Number                     "]
[null,null,null,null,null,null,null,null,null,null,null,null,null,null,null,null,null,null,"VE1 - Venezuela: RIF Number                   "]
[null,null,null,null,null,null,null,null,null,null,null,null,null,null,null,null,null,null,"VE2 - Venezuela: NIT Number                   "]
[null,null,null,null,null,null,null,null,null,null,null,null,null,null,null,null,null,null,"VN1 - Vietnam: Tax Identification Number      "]
[null,null,null,null,null,null,null,null,null,null,null,null,null,null,null,null,null,null,"ZA1 - South Africa: VAT Registration Number   "]
[null,null,null,null,null,null,null,null,null,null,null,null,null,null,null,null,null,null,"ZA3 - South Africa: Income Tax Registration No"]
[null,null,null,null,null,null,null,null,null,null,null,null,null,null,null,null,null,null,"ZA5 - South Africa:TRN-TAX Registration Number"]
[null,null,null,null,null,null,null,null,null,null,null,null,null,null,null,null,null,null,"ZM1 - Zambia: Taxpayer Identification Number  "]
[null,null,null,null,null,null,null,null,null,null,null,null,null,null,null,null,null,null,"ZW1 - Zimbabwe: VAT Registration Number       "]
[null,null,null,null,null,null,null,null,null,null,null,null,null,null,null,null,null,null,"ZW2 - Zimbabwe: Business Partner Number (BPN) "]
[null,null,null,null,null,null,null,null,null,null,null,null,null,null,null,null,null,null,"NA-Not Applicable"]

{"sheet":"LOVs MDM","index":3,"n_rows":195,"n_cols":42,"rows_kept":195,"cut":false,"hidden":true,"merged":[]}
["Change Request Types","Inco Terms","Freight Terms (Incoterm Location 2) ","Reconciliation Account","Customer Groups","Customer Group 2","Customer Group 5","Sales District","Price Group","Price List","Shipping Conditions","Delivery Priority","Customer Tax Classification","Account Assignment Group","Complete Delivery","Order Block","Business Unit (Sales Entity)","Country","US","Other","5. Create Inter Company Customers Sold To/Ship To (INCP)","6 .Create Inter Company Bill To/Payer (ZICC)","29110001 AR - InterCompany","Transportation Zone","Description","TZ Description","US States","US TZ","Non US TZ","Distribution Channel","Division","Tax Category ","N60 Fire Detection","CH10 JCI Swiss Principal","DK10 DK Sales Org","ES20 JCH ES SalesOrg","N60 Fire Detection_Division","CH10 JCI Swiss Principal_Division","DK10 DK Sales Org_Division","ES20 JCH ES SalesOrg_Division","US10 US Controls SalesOrg","US10 US Controls SalesOrg_Division"]
["1. Create Third Party (Sold To)","CFR Costs and Freight","Prepaid","12100001  Accounts Receivable - Trade","02- Intercompany","100- Strat./Glob.Account","101- Contracting","ZZ0001- Europe","10- Level10","F1- SIN Simplx India Dlr","11- Ocean","01- High","0 Tax Exempt","Z1 Foreign Sales","X- For Complete Delivery","01- Overall Block","N10 - NA Applied","US","Z2 Local Sales","Z1 Foreign Sales","29110001 AR - InterCompany","29110001 AR - InterCompany",null,"INT00EU","Europe",{"$f":"_xlfn.CONCAT(X2,\"-\",Y2)","v":"INT00EU-Europe"},"Alaska","US00AK-US Alaska","INT00EU-Europe","Product Sales","00-Common","AD3 - Andorra: Tax Register Number (NRT)      ","Product Sales","Product Sales","Product Sales","Product Sales","00-Common","00-Common","20-Refrigeration","80-JCH","Product Sales","00-Common"]
["2. Create Third Party (Payer)","CIF Costs, Insurance & Freight","Prepaid+Add","29110001 AR - InterCompany","03- Manufacturing Reps","101- National Account","102- Service","ZZ0002- North America","11- Level11","FA- ACC Autocall Can Dlr","12- Ground","02- Normal item","1 Liable for Taxes","Z2 Local Sales","Blank - For Partial Delivery","02- Partner Blocked","N11 - NA Air Distribution","Other",null,null,null,null,null,"INT00ME","Middle East",{"$f":"_xlfn.CONCAT(X3,\"-\",Y3)","v":"INT00ME-Middle East"},"Alabama","US00AL-US Alabama","INT00ME-Middle East","Aftermarket Parts","20-Refrigeration","AE0 - UAE: VAT Registration Number            ",null,null,null,"Aftermarket Parts"]
["3. Create Third Party (Ship To)","CIP Carriage and Insurance Paid to","Customer Collect",null,"04- Original Equip Mfg","102- Corporate Customer","103- Aftermarket Parts","ZZ0003- Latin America","12- Level12","FB- ACD Dom.AutoCall.dlr","13- 1 Day Air (10:30 AM)","03- Low",null,"Z3 Inter Company Sales",null,"03- Only Cash Allowed","N20 - NA Ind Ref",null,null,null,null,null,null,"INT00AS","Asia","INT00AS-Asia","Arkansas","US00AR-US Arkansas","INT00AS-Asia",null,"80-JCH","AE1 - UAE: Tax Identification Number (TIN)    "]
["4. Create Third Party (Bill To)","CPT Carriage Paid to","Third Party Billing",null,"05- Retailers","103- Intercompany","104- Product Distribution","ZZ0004- Asia Pacific","13- Level13","FC- CAD Dom.AC.Dlr. CWSI","14- 1 Day Air (3:00 PM)","24- Fast Track",null,null,null,"04- E-Invoicing","N30 - NA Ducted Systems",null,null,null,null,null,null,"INT00AF","Africa","INT00AF-Africa","Arizone","US00AZ-US Arizone","INT00AF-Africa",null,null,"AO3 - Angola: Tax Identification Number (NIF) "]
["5. Create Inter Company Customers Sold To/Ship To (INCP)","DAP Delivered at Place","NA Not Applicable",null,"06- Contr/Dlr/Instlr/Int","104- Affiliate/Joint Vent","105- HVAC","ZZ0005- Middle East & Africa","14- Level14","FD- ACL Autcall APAC Dlr","15- 2 Day Air","25- Emergency",null,null,null,null,"N40 - NA Marine",null,null,null,null,null,null,"INT00SA","South America","INT00SA-South America","California","US00CA-US California","INT00SA-South America",null,null,"AR1A - Argentina: CUIT Number                  "]
["6 .Create Inter Company Bill To/Payer (ZICC)","DDP Delivered Duty Paid",null,null,"07- eCommerce","105- Others","106- Marine / Navy",null,"15- Level15","FE- ANG AnsulGrtYarmouth","19- International Air","NA-Not Applicable",null,null,null,null,"N50 - NA Controls",null,null,null,null,null,null,"INT00CA","Canada","INT00CA-Canada","Colorado","US00CO-US Colorado",null,null,null,"AR1B - Argentina: CUIL Number                  "]
["7. Change Customer General Data","DPU Delivered at Place",null,null,"08- Distrbtr(Wholesaler)","106- Branch","107- Wholesaler",null,"16- Level16","FF- ANS Ansul TransferPr","20- IntrnationlAirPriori",null,null,null,null,null,"N60 - NA Fire Detection",null,null,null,null,null,null,"INT00MEX","Mexico","INT00MEX-Mexico","Connecticut","US00CT-US Connecticut",null,null,null,"AR1C - Argentina: CDI Number                   "]
["8. Change Customer Sales Area Data","EXW Ex Works",null,null,"09- Commission Agent","107- Intra-Company","108- AuthorisedDistributo",null,"17- Level17","FG- AUZ New Zealand","21- 3 Day Air",null,null,null,null,null,"N61 - NA FS-Intrusion",null,null,null,null,null,null,"US00AK","US Alaska","US00AK-US Alaska","Washington DC","US00DC-US Washington DC",null,null,null,"AR1D - Argentina: DNI Number                   "]
["9. Change InterCompany Customers","FAS Free Alongside Ship",null,null,"10- GP Direct-Owner","NA Not Applicable","109- BSNA USA",null,"18- Level18","FH- CWU CWSI Dealer","22- 1 Day Air (8:00 AM)",null,null,null,null,null,"N62 - NA Security-ACVS",null,null,null,null,null,null,"US00AL","US Alabama","US00AL-US Alabama","Delaware","US00DE-US Delaware",null,null,null,"AR1Z - Argentina: without ID                   "]
["10. Block/Unblock Third Party (Sold To)","FCA Free Carrier",null,null,"11- GP Direct-GP Branch",null,"110- BSNA Canada",null,"19- Level19","FI- SCP BSNA US Br TrPr","NA-Not Applicable",null,null,null,null,null,"N63 - NA CORPORATE",null,null,null,null,null,null,"US00AR","US Arkansas","US00AR-US Arkansas","Florida","US00FL-US Florida",null,null,null,"AR2 - Argentina: Income Tax Number            "]
["11. Block/Unblock Customer - Custom","FOB Free on Board",null,null,"15- Branch Field Org NA",null,"500- Atocal N America Dlr",null,"20- Level20","FJ- DI01 BSNA US Cr TrPr",null,null,null,null,null,null,"N70 - NA Fire Suppression",null,null,null,null,null,null,"US00AZ","US Arizone","US00AZ-US Arizone","Georgia","US00GA-US Georgia",null,null,null,"AR3 - NIP number or CM number                 "]
[null,"Z01 Freight Applied",null,null,"16- Branch Field EMEALA",null,"501- Autocal/CWSI Dom Dlr",null,"GS- GSA Pricing","FK- SDE BSNA US LstPr",null,null,null,null,null,null,"N80 - NA JCH",null,null,null,null,null,null,"US00CA","US California","US00CA-US California","Hawaii","US00HI-US Hawaii",null,null,null,"AT0 - Austria: VAT Registration Number        "]
[null,"Z02 Freight Exempt",null,null,"17- Branch Field OrgAPAC",null,"502- CWSI Dlr",null,"NA-Not Applicable","FL- SGI BAAN 112 to S4",null,null,null,null,null,null,"E10 - EMEA Applied",null,null,null,null,null,null,"US00CO","US Colorado","US00CO-US Colorado","Iowa","US00IA-US Iowa",null,null,null,"AU0 - Australia: ABN                          "]
[null,"Z03 Freight EXEMPT 50%",null,null,"20- Others",null,"503- Ansul Dealers",null,null,"FM- GLP Simplx APAC Dlr",null,null,null,null,null,null,"E11 - EMEA Air Distr.",null,null,null,null,null,null,"US00CT","US Connecticut","US00CT-US Connecticut","Idaho","US00ID-US Idaho",null,null,null,"BE0 - Belgium: VAT Registration Number        "]
[null,"Z04 Freight Third Party Billed",null,null,"NA Not Applicable",null,"504- Midl east Simplx Dlr",null,null,"FN- SXC BSNA Ca Br TrPr",null,null,null,null,null,null,"E20 - EMEA Ind Ref",null,null,null,null,null,null,"US00DC","US Washington DC","US00DC-US Washington DC","Illinois","US00IL-US Illinois",null,null,null,"BE1 - Belgium: Enterprise Number              "]
[null,"Z05 Freight Collect",null,null,null,null,"505- Midl east Atocal Dlr",null,null,"FO- SCT BSNA Ca Cr TrPr",null,null,null,null,null,null,"E30 - EMEA Ducted Systems",null,null,null,null,null,null,"US00DE","US Delaware","US00DE-US Delaware","Indiana","US00IN-US Indiana",null,null,null,"BE2 - Belgium: VAT Reg. No. w/o country code  "]
[null,"Z06 Freight Exempt m",null,null,null,null,"506- APAC Simplex Dealers",null,null,"FP- SDC BSNA Can LPr",null,null,null,null,null,null,"E40 - EMEA Marine",null,null,null,null,null,null,"US00FL","US Florida","US00FL-US Florida","Kansas","US00KS-US Kansas",null,null,null,"BG0 - Bulgaria: Vat Registration Number       "]
[null,"ZNA Not Applicable",null,null,null,null,"507- APAC Autocall Dealer",null,null,"FQ- IND Ind Mfg Company",null,null,null,null,null,null,"E50 - EMEA Controls",null,null,null,null,null,null,"US00GA","US Georgia","US00GA-US Georgia","Kentucky","US00KY-US Kentucky",null,null,null,"BG1 - Bulgaria: Unified ID Code               "]
[null,null,null,null,null,null,"508- LATAM Dealers",null,null,"FR- JCI JCI/TIS SmplxC/S",null,null,null,null,null,null,"E60 - EMEA Fire Detection",null,null,null,null,null,null,"US00HI","US Hawaii","US00HI-US Hawaii","Louisiana","US00LA-US  Louisiana",null,null,null,"BG2 - Bulgaria: Personal ID                   "]
[null,null,null,null,null,null,"509- NAmerica Simplex Dlr",null,null,"FS- LAT Smplx LATAM Dlr",null,null,null,null,null,null,"E61 - EMEA FS-Intrusion",null,null,null,null,null,null,"US00IA","US Iowa","US00IA-US Iowa","Massachusetts","US00MA-US Massachusetts",null,null,null,"BG3 - Bulgaria: Social Security Number        "]
[null,null,null,null,null,null,"510- New Zealand",null,null,"FT- MEA Aut ME Dlr",null,null,null,null,null,null,"E62 - EMEA Security-ACVS",null,null,null,null,null,null,"US00ID","US Idaho","US00ID-US Idaho","Maryland","US00MD-US Maryland",null,null,null,"BH0 - Bahrain: VAT Registration Number        "]
[null,null,null,null,null,null,"511- Space Age",null,null,"FU- MES Smp ME Dlr",null,null,null,null,null,null,"E70 - EMEA Fire Suppression",null,null,null,null,null,null,"US00IL","US Illinois","US00IL-US Illinois","Maine","US00ME-US Maine",null,null,null,"BM3 - Bermuda: Tax Identification Number      "]
[null,null,null,null,null,null,"NA Not Applicable",null,null,"FV- SAE Spc Age Elctron",null,null,null,null,null,null,"E80 - EMEA JCH",null,null,null,null,null,null,"US00IN","US Indiana","US00IN-US Indiana","Michigan","US00MI-US Michigan",null,null,null,"BR1 - Brazil: CNPJ Number                     "]
[null,null,null,null,null,null,null,null,null,"FW- USL Ext US Dlr",null,null,null,null,null,null,null,null,null,null,null,null,null,"US00KS","US Kansas","US00KS-US Kansas","Minnesota","US00MN-US Minnesota",null,null,null,"BR2 - Brazil: CPF Number                      "]
[null,null,null,null,null,null,null,null,null,"FX- RAJ Rajecko Material",null,null,null,null,null,null,null,null,null,null,null,null,null,"US00KY","US Kentucky","US00KY-US Kentucky","Missouri","US00MO-US Missouri",null,null,null,"BR3 - Brazil: State Tax Number                "]
[null,null,null,null,null,null,null,null,null,"FY- RYN Reynosa Material",null,null,null,null,null,null,null,null,null,null,null,null,null,"US00LA","US  Louisiana","US00LA-US  Louisiana","Mississsipi","US00MS-US Mississsipi",null,null,null,"BR4 - Brazil: Municipal Tax Number            "]
[null,null,null,null,null,null,null,null,null,"FZ- TMC Total Manufactur",null,null,null,null,null,null,null,null,null,null,null,null,null,"US00MA","US Massachusetts","US00MA-US Massachusetts","Montana","US00MT-US Montana",null,null,null,"BW1 - Botswana: VAT Registration Number       "]
[null,null,null,null,null,null,null,null,null,"GS- GSA Customer",null,null,null,null,null,null,null,null,null,null,null,null,null,"US00MD","US Maryland","US00MD-US Maryland","Noth Carolina","US00NC-US Noth Carolina",null,null,null,"BZ1 - Belize: Social Security Number          "]
[null,null,null,null,null,null,null,null,null,"R1- Adv Exc Pricing",null,null,null,null,null,null,null,null,null,null,null,null,null,"US00ME","US Maine","US00ME-US Maine","Noth Dakota","US00ND-US Noth Dakota",null,null,null,"BZ2 - Belize: Tax identifier (free use)       "]
[null,null,null,null,null,null,null,null,null,"NA-Not Applicable",null,null,null,null,null,null,null,null,null,null,null,null,null,"US00MI","US Michigan","US00MI-US Michigan","Nebraska","US00NE-US Nebraska",null,null,null,"BZ5 - Belize: Tax Identification Number       "]
[null,null,null,null,null,null,null,null,null,null,null,null,null,null,null,null,null,null,null,null,null,null,null,"US00MN","US Minnesota","US00MN-US Minnesota","New Hampshire","US00NH-US New Hampshire",null,null,null,"CA1 - Canada: Goods and Service Tax (GST) No. "]
[null,null,null,null,null,null,null,null,null,null,null,null,null,null,null,null,null,null,null,null,null,null,null,"US00MO","US Missouri","US00MO-US Missouri","New Jersey","US00NJ-US New Jersey",null,null,null,"CA2 - Canada: Business Number                 "]
[null,null,null,null,null,null,null,null,null,null,null,null,null,null,null,null,null,null,null,null,null,null,null,"US00MS","US Mississsipi","US00MS-US Mississsipi","New Mexico","US00NM-US New Mexico",null,null,null,"CA3 - Canada: Provincial Sales Tax (PST) No.  "]
[null,null,null,null,null,null,null,null,null,null,null,null,null,null,null,null,null,null,null,null,null,null,null,"US00MT","US Montana","US00MT-US Montana","Nevada","US00NV-US Nevada",null,null,null,"CA4 - Canada: Quebec Sales Tax (QST) No.      "]
[null,null,null,null,null,null,null,null,null,null,null,null,null,null,null,null,null,null,null,null,null,null,null,"US00NC","US Noth Carolina","US00NC-US Noth Carolina","New York","US00NY-US New York",null,null,null,"CH1 - Switzerland: UID Number                 "]
[null,null,null,null,null,null,null,null,null,null,null,null,null,null,null,null,null,null,null,null,null,null,null,"US00ND","US Noth Dakota","US00ND-US Noth Dakota","Ohio","US00OH-US Ohio",null,null,null,"CH2 - Switzerland: VAT Number                 "]
[null,null,null,null,null,null,null,null,null,null,null,null,null,null,null,null,null,null,null,null,null,null,null,"US00NE","US Nebraska","US00NE-US Nebraska","Oklahoma","US00OK-US Oklahoma",null,null,null,"CI3 - Cote d'Ivoire: Tax Identification Number"]
[null,null,null,null,null,null,null,null,null,null,null,null,null,null,null,null,null,null,null,null,null,null,null,"US00NH","US New Hampshire","US00NH-US New Hampshire","Oregon","US00OR-US Oregon",null,null,null,"CL1 - Chile: RUT Number                       "]
[null,null,null,null,null,null,null,null,null,null,null,null,null,null,null,null,null,null,null,null,null,null,null,"US00NJ","US New Jersey","US00NJ-US New Jersey","Pennsylvania","US00PA-US Pennsylvania",null,null,null,"CM3 - Cameroon: Tax Identification Number     "]
[null,null,null,null,null,null,null,null,null,null,null,null,null,null,null,null,null,null,null,null,null,null,null,"US00NM","US New Mexico","US00NM-US New Mexico","Puerto Rico","US00PR-US Puerto Rico",null,null,null,"CN0 - China: Tax Number                       "]
[null,null,null,null,null,null,null,null,null,null,null,null,null,null,null,null,null,null,null,null,null,null,null,"US00NV","US Nevada","US00NV-US Nevada","Rhode Island","US00RI-US Rhode Island",null,null,null,"CN5 - China: Tax Number                       "]
[null,null,null,null,null,null,null,null,null,null,null,null,null,null,null,null,null,null,null,null,null,null,null,"US00NY","US New York","US00NY-US New York","South Carolina","US00SC-US South Carolina",null,null,null,"CO1 - Colombia: NIT Number                    "]
[null,null,null,null,null,null,null,null,null,null,null,null,null,null,null,null,null,null,null,null,null,null,null,"US00OH","US Ohio","US00OH-US Ohio","South Dakota","US00SD-US South Dakota",null,null,null,"CR3 - Costa Rica: Tax Identification Number   "]
[null,null,null,null,null,null,null,null,null,null,null,null,null,null,null,null,null,null,null,null,null,null,null,"US00OK","US Oklahoma","US00OK-US Oklahoma","Tennesse","US00TN-US Tennesse",null,null,null,"CW3 - Curacao:Tax Identification Number       "]
[null,null,null,null,null,null,null,null,null,null,null,null,null,null,null,null,null,null,null,null,null,null,null,"US00OR","US Oregon","US00OR-US Oregon","Texas","US00TX-US Texas",null,null,null,"CY0 - Cyprus: VAT Registration Number         "]
[null,null,null,null,null,null,null,null,null,null,null,null,null,null,null,null,null,null,null,null,null,null,null,"US00PA","US Pennsylvania","US00PA-US Pennsylvania","Utah","US00UT-US Utah",null,null,null,"CZ0 - Czech Republic: VAT Registration Number "]
[null,null,null,null,null,null,null,null,null,null,null,null,null,null,null,null,null,null,null,null,null,null,null,"US00PR","US Puerto Rico","US00PR-US Puerto Rico","Virginia","US00VA-US Virginia",null,null,null,"CZ1 - Czech Republic: DIC Number              "]
[null,null,null,null,null,null,null,null,null,null,null,null,null,null,null,null,null,null,null,null,null,null,null,"US00RI","US Rhode Island","US00RI-US Rhode Island","Vermont","US00VT-US Vermont",null,null,null,"CZ2 - Czech Republic: ICO Number              "]
[null,null,null,null,null,null,null,null,null,null,null,null,null,null,null,null,null,null,null,null,null,null,null,"US00SC","US South Carolina","US00SC-US South Carolina","Washington","US00WA-US Washington",null,null,null,"DE0 - Germany: VAT Registration Number        "]
[null,null,null,null,null,null,null,null,null,null,null,null,null,null,null,null,null,null,null,null,null,null,null,"US00SD","US South Dakota","US00SD-US South Dakota","Wisconsin","US00WI-US Wisconsin",null,null,null,"DE1 - Germany: Income Tax Number (§48)        "]
[null,null,null,null,null,null,null,null,null,null,null,null,null,null,null,null,null,null,null,null,null,null,null,"US00TN","US Tennesse","US00TN-US Tennesse","West Virginia","US00WV-US West Virginia",null,null,null,"DE2 - Germany: VAT Number (Credit Proc. §14)  "]
[null,null,null,null,null,null,null,null,null,null,null,null,null,null,null,null,null,null,null,null,null,null,null,"US00TX","US Texas","US00TX-US Texas","Wyoming","US00WY-US Wyoming",null,null,null,"DE3 - Germany: Elster Tax Number              "]
[null,null,null,null,null,null,null,null,null,null,null,null,null,null,null,null,null,null,null,null,null,null,null,"US00UT","US Utah","US00UT-US Utah",null,null,null,null,null,"DE4 - Germany: Tax Number                     "]
[null,null,null,null,null,null,null,null,null,null,null,null,null,null,null,null,null,null,null,null,null,null,null,"US00VA","US Virginia","US00VA-US Virginia",null,null,null,null,null,"DE5 - Germany: Tax Number mapped to LFA1-STCD2"]
[null,null,null,null,null,null,null,null,null,null,null,null,null,null,null,null,null,null,null,null,null,null,null,"US00VT","US Vermont","US00VT-US Vermont",null,null,null,null,null,"DK0 - Denmark: VAT Registration Number        "]
[null,null,null,null,null,null,null,null,null,null,null,null,null,null,null,null,null,null,null,null,null,null,null,"US00WA","US Washington","US00WA-US Washington",null,null,null,null,null,"DK2 - Denmark: Tax Number                     "]
[null,null,null,null,null,null,null,null,null,null,null,null,null,null,null,null,null,null,null,null,null,null,null,"US00WI","US Wisconsin","US00WI-US Wisconsin",null,null,null,null,null,"DZ1 - Algeria:NIF Number                      "]
[null,null,null,null,null,null,null,null,null,null,null,null,null,null,null,null,null,null,null,null,null,null,null,"US00WV","US West Virginia","US00WV-US West Virginia",null,null,null,null,null,"EE0 - Estonia: VAT Registration Number        "]
[null,null,null,null,null,null,null,null,null,null,null,null,null,null,null,null,null,null,null,null,null,null,null,"US00WY","US Wyoming","US00WY-US Wyoming",null,null,null,null,null,"EG3 - Egypt: Tax Identification Number        "]
[null,null,null,null,null,null,null,null,null,null,null,null,null,null,null,null,null,null,null,null,null,null,null,null,null,null,null,null,null,null,null,"ES0 - Spain: VAT Registration Number          "]
[null,null,null,null,null,null,null,null,null,null,null,null,null,null,null,null,null,null,null,null,null,null,null,null,null,null,null,null,null,null,null,"ES1 - Spain: NIF Number                       "]
[null,null,null,null,null,null,null,null,null,null,null,null,null,null,null,null,null,null,null,null,null,null,null,null,null,null,null,null,null,null,null,"ES5 - Spain: DIR3 codes                       "]
[null,null,null,null,null,null,null,null,null,null,null,null,null,null,null,null,null,null,null,null,null,null,null,null,null,null,null,null,null,null,null,"FI0 - Finland: VAT Registration Number        "]
[null,null,null,null,null,null,null,null,null,null,null,null,null,null,null,null,null,null,null,null,null,null,null,null,null,null,null,null,null,null,null,"FJ3 - Fiji: VAT Registration Number           "]
[null,null,null,null,null,null,null,null,null,null,null,null,null,null,null,null,null,null,null,null,null,null,null,null,null,null,null,null,null,null,null,"FR0 - France: VAT Registration Number         "]
[null,null,null,null,null,null,null,null,null,null,null,null,null,null,null,null,null,null,null,null,null,null,null,null,null,null,null,null,null,null,null,"FR1 - France: SIRET Number                    "]
[null,null,null,null,null,null,null,null,null,null,null,null,null,null,null,null,null,null,null,null,null,null,null,null,null,null,null,null,null,null,null,"FR2 - France: SIREN Number                    "]
[null,null,null,null,null,null,null,null,null,null,null,null,null,null,null,null,null,null,null,null,null,null,null,null,null,null,null,null,null,null,null,"GB0 - United Kingdom: VAT Registration Number "]
[null,null,null,null,null,null,null,null,null,null,null,null,null,null,null,null,null,null,null,null,null,null,null,null,null,null,null,null,null,null,null,"GB1 - United Kingdom: Passport Number         "]
[null,null,null,null,null,null,null,null,null,null,null,null,null,null,null,null,null,null,null,null,null,null,null,null,null,null,null,null,null,null,null,"GB2 - United Kingdom: National Insurance Numbe"]
[null,null,null,null,null,null,null,null,null,null,null,null,null,null,null,null,null,null,null,null,null,null,null,null,null,null,null,null,null,null,null,"GB3 - United Kingdom: Company Registration Num"]
[null,null,null,null,null,null,null,null,null,null,null,null,null,null,null,null,null,null,null,null,null,null,null,null,null,null,null,null,null,null,null,"GB4 - United Kingdom: Unique Tax Reference    "]
[null,null,null,null,null,null,null,null,null,null,null,null,null,null,null,null,null,null,null,null,null,null,null,null,null,null,null,null,null,null,null,"GE3 - Georgia:Tax Identification Number       "]
[null,null,null,null,null,null,null,null,null,null,null,null,null,null,null,null,null,null,null,null,null,null,null,null,null,null,null,null,null,null,null,"GH1 - Ghana: Taxpayer Identification Number   "]
[null,null,null,null,null,null,null,null,null,null,null,null,null,null,null,null,null,null,null,null,null,null,null,null,null,null,null,null,null,null,null,"GR0 - Greece: VAT Registration Number         "]
[null,null,null,null,null,null,null,null,null,null,null,null,null,null,null,null,null,null,null,null,null,null,null,null,null,null,null,null,null,null,null,"GR1 - Greece: Personal ID                     "]
[null,null,null,null,null,null,null,null,null,null,null,null,null,null,null,null,null,null,null,null,null,null,null,null,null,null,null,null,null,null,null,"GR2 - Greece: AFM Number                      "]
[null,null,null,null,null,null,null,null,null,null,null,null,null,null,null,null,null,null,null,null,null,null,null,null,null,null,null,null,null,null,null,"HK3 - Hong Kong:  Business Registration Number"]
[null,null,null,null,null,null,null,null,null,null,null,null,null,null,null,null,null,null,null,null,null,null,null,null,null,null,null,null,null,null,null,"HR0 - Croatia : VAT Registration Number       "]
[null,null,null,null,null,null,null,null,null,null,null,null,null,null,null,null,null,null,null,null,null,null,null,null,null,null,null,null,null,null,null,"HR1 - Croatia. JMBG Number                    "]
[null,null,null,null,null,null,null,null,null,null,null,null,null,null,null,null,null,null,null,null,null,null,null,null,null,null,null,null,null,null,null,"HR2 - Croatia: OIB Number                     "]
[null,null,null,null,null,null,null,null,null,null,null,null,null,null,null,null,null,null,null,null,null,null,null,null,null,null,null,null,null,null,null,"HU0 - Hungary: VAT Registration Number        "]
[null,null,null,null,null,null,null,null,null,null,null,null,null,null,null,null,null,null,null,null,null,null,null,null,null,null,null,null,null,null,null,"HU1 - Hungary: Tax Number                     "]
[null,null,null,null,null,null,null,null,null,null,null,null,null,null,null,null,null,null,null,null,null,null,null,null,null,null,null,null,null,null,null,"ID1 - Indonesia: NPWP Number                  "]
[null,null,null,null,null,null,null,null,null,null,null,null,null,null,null,null,null,null,null,null,null,null,null,null,null,null,null,null,null,null,null,"ID3 - Indonesia: NPPKP Number                 "]
[null,null,null,null,null,null,null,null,null,null,null,null,null,null,null,null,null,null,null,null,null,null,null,null,null,null,null,null,null,null,null,"IE0 - Ireland: VAT Registration Number        "]
[null,null,null,null,null,null,null,null,null,null,null,null,null,null,null,null,null,null,null,null,null,null,null,null,null,null,null,null,null,null,null,"IE1 - Ireland:Company Registration Number(CRN)"]
[null,null,null,null,null,null,null,null,null,null,null,null,null,null,null,null,null,null,null,null,null,null,null,null,null,null,null,null,null,null,null,"IL0 - Israel: VAT Registration Number         "]
[null,null,null,null,null,null,null,null,null,null,null,null,null,null,null,null,null,null,null,null,null,null,null,null,null,null,null,null,null,null,null,"IL1 - Israel: Tax Number1                     "]
[null,null,null,null,null,null,null,null,null,null,null,null,null,null,null,null,null,null,null,null,null,null,null,null,null,null,null,null,null,null,null,"IL2 - Israel: Tax Number2                     "]
[null,null,null,null,null,null,null,null,null,null,null,null,null,null,null,null,null,null,null,null,null,null,null,null,null,null,null,null,null,null,null,"IM0 - Isle Of Man: VAT Registration Number    "]
[null,null,null,null,null,null,null,null,null,null,null,null,null,null,null,null,null,null,null,null,null,null,null,null,null,null,null,null,null,null,null,"IN2 - India: Tax Identification Number (TIN)  "]
[null,null,null,null,null,null,null,null,null,null,null,null,null,null,null,null,null,null,null,null,null,null,null,null,null,null,null,null,null,null,null,"IN3 - India: GST Identification Number(GSTIN) "]
[null,null,null,null,null,null,null,null,null,null,null,null,null,null,null,null,null,null,null,null,null,null,null,null,null,null,null,null,null,null,null,"IR3 - Iran: Tax Identification Number         "]
[null,null,null,null,null,null,null,null,null,null,null,null,null,null,null,null,null,null,null,null,null,null,null,null,null,null,null,null,null,null,null,"IS3 - Iceland: Identification number          "]
[null,null,null,null,null,null,null,null,null,null,null,null,null,null,null,null,null,null,null,null,null,null,null,null,null,null,null,null,null,null,null,"IT0 - Italy: VAT Registration Number          "]
[null,null,null,null,null,null,null,null,null,null,null,null,null,null,null,null,null,null,null,null,null,null,null,null,null,null,null,null,null,null,null,"IT1 - Italy: Codice Fiscale                   "]
[null,null,null,null,null,null,null,null,null,null,null,null,null,null,null,null,null,null,null,null,null,null,null,null,null,null,null,null,null,null,null,"IT2 - Italy: IVA Code                         "]
[null,null,null,null,null,null,null,null,null,null,null,null,null,null,null,null,null,null,null,null,null,null,null,null,null,null,null,null,null,null,null,"IT4 - Italy: IPA Code                         "]
[null,null,null,null,null,null,null,null,null,null,null,null,null,null,null,null,null,null,null,null,null,null,null,null,null,null,null,null,null,null,null,"JP3 - Japan: Corporate number                 "]
[null,null,null,null,null,null,null,null,null,null,null,null,null,null,null,null,null,null,null,null,null,null,null,null,null,null,null,null,null,null,null,"KE3 - Kenya: PIN number                       "]
[null,null,null,null,null,null,null,null,null,null,null,null,null,null,null,null,null,null,null,null,null,null,null,null,null,null,null,null,null,null,null,"KP3 - North Korea:Business Registration number"]
[null,null,null,null,null,null,null,null,null,null,null,null,null,null,null,null,null,null,null,null,null,null,null,null,null,null,null,null,null,null,null,"KR1 - South Korea: Corporation ID or Personal "]
[null,null,null,null,null,null,null,null,null,null,null,null,null,null,null,null,null,null,null,null,null,null,null,null,null,null,null,null,null,null,null,"KR2 - South Korea: VAT Registration Number    "]
[null,null,null,null,null,null,null,null,null,null,null,null,null,null,null,null,null,null,null,null,null,null,null,null,null,null,null,null,null,null,null,"KW0 - Kuwait: VAT Registration Number         "]
[null,null,null,null,null,null,null,null,null,null,null,null,null,null,null,null,null,null,null,null,null,null,null,null,null,null,null,null,null,null,null,"KW1 - Kuwait: Tax Identification Number (TIN) "]
[null,null,null,null,null,null,null,null,null,null,null,null,null,null,null,null,null,null,null,null,null,null,null,null,null,null,null,null,null,null,null,"KZ1 - Kazakhstan: RNN Number                  "]
[null,null,null,null,null,null,null,null,null,null,null,null,null,null,null,null,null,null,null,null,null,null,null,null,null,null,null,null,null,null,null,"LC3 - St. Lucia: Tax Identification Number    "]
[null,null,null,null,null,null,null,null,null,null,null,null,null,null,null,null,null,null,null,null,null,null,null,null,null,null,null,null,null,null,null,"LT0 - Lithuania: VAT Registration Number      "]
[null,null,null,null,null,null,null,null,null,null,null,null,null,null,null,null,null,null,null,null,null,null,null,null,null,null,null,null,null,null,null,"LU0 - Luxembourg: VAT Registration Number     "]
[null,null,null,null,null,null,null,null,null,null,null,null,null,null,null,null,null,null,null,null,null,null,null,null,null,null,null,null,null,null,null,"LV0 - Latvia: VAT Registration Number         "]
[null,null,null,null,null,null,null,null,null,null,null,null,null,null,null,null,null,null,null,null,null,null,null,null,null,null,null,null,null,null,null,"MA3 - Morocco: Tax Identification Number      "]
[null,null,null,null,null,null,null,null,null,null,null,null,null,null,null,null,null,null,null,null,null,null,null,null,null,null,null,null,null,null,null,"MC0 - Monaco: VAT Registration Number         "]
[null,null,null,null,null,null,null,null,null,null,null,null,null,null,null,null,null,null,null,null,null,null,null,null,null,null,null,null,null,null,null,"MC1 - Monaco: SIRET Number                    "]
[null,null,null,null,null,null,null,null,null,null,null,null,null,null,null,null,null,null,null,null,null,null,null,null,null,null,null,null,null,null,null,"MC2 - Moanco: SIREN Number                    "]
[null,null,null,null,null,null,null,null,null,null,null,null,null,null,null,null,null,null,null,null,null,null,null,null,null,null,null,null,null,null,null,"MT0 - Malta: VAT Registration Number          "]
[null,null,null,null,null,null,null,null,null,null,null,null,null,null,null,null,null,null,null,null,null,null,null,null,null,null,null,null,null,null,null,"MU1 - Mauritius: Tax Account Number (TAN)     "]
[null,null,null,null,null,null,null,null,null,null,null,null,null,null,null,null,null,null,null,null,null,null,null,null,null,null,null,null,null,null,null,"MW1 - Malawi: Taxpayer Identification Number  "]
[null,null,null,null,null,null,null,null,null,null,null,null,null,null,null,null,null,null,null,null,null,null,null,null,null,null,null,null,null,null,null,"MX1 - Mexico: RFC Number                      "]
[null,null,null,null,null,null,null,null,null,null,null,null,null,null,null,null,null,null,null,null,null,null,null,null,null,null,null,null,null,null,null,"MX2 - Mexico: VAT Liability                   "]
[null,null,null,null,null,null,null,null,null,null,null,null,null,null,null,null,null,null,null,null,null,null,null,null,null,null,null,null,null,null,null,"MX3 - Mexico: CURP Number                     "]
[null,null,null,null,null,null,null,null,null,null,null,null,null,null,null,null,null,null,null,null,null,null,null,null,null,null,null,null,null,null,null,"MY1 - Malaysia : GST Number                   "]
[null,null,null,null,null,null,null,null,null,null,null,null,null,null,null,null,null,null,null,null,null,null,null,null,null,null,null,null,null,null,null,"MZ1 - Mozambique: Tax Number (NUIT)           "]
[null,null,null,null,null,null,null,null,null,null,null,null,null,null,null,null,null,null,null,null,null,null,null,null,null,null,null,null,null,null,null,"NA1 - Namibia: VAT Registration Number        "]
[null,null,null,null,null,null,null,null,null,null,null,null,null,null,null,null,null,null,null,null,null,null,null,null,null,null,null,null,null,null,null,"NG3 - Nigeria: Tax Identification Number      "]
[null,null,null,null,null,null,null,null,null,null,null,null,null,null,null,null,null,null,null,null,null,null,null,null,null,null,null,null,null,null,null,"NL0 - Netherlands: VAT Registration Number    "]
[null,null,null,null,null,null,null,null,null,null,null,null,null,null,null,null,null,null,null,null,null,null,null,null,null,null,null,null,null,null,null,"NL1 - Netherlands: Aansluitnummer UWV         "]
[null,null,null,null,null,null,null,null,null,null,null,null,null,null,null,null,null,null,null,null,null,null,null,null,null,null,null,null,null,null,null,"NL2 - Netherlands: BSN Number                 "]
[null,null,null,null,null,null,null,null,null,null,null,null,null,null,null,null,null,null,null,null,null,null,null,null,null,null,null,null,null,null,null,"NL3 - Netherlands: Loonbelastingnummer        "]
[null,null,null,null,null,null,null,null,null,null,null,null,null,null,null,null,null,null,null,null,null,null,null,null,null,null,null,null,null,null,null,"NO1 - Norway : VAT Number                     "]
[null,null,null,null,null,null,null,null,null,null,null,null,null,null,null,null,null,null,null,null,null,null,null,null,null,null,null,null,null,null,null,"NO2 - Norway: Tax Number                      "]
[null,null,null,null,null,null,null,null,null,null,null,null,null,null,null,null,null,null,null,null,null,null,null,null,null,null,null,null,null,null,null,"NZ1 - New Zealand: Goods & Services Tax (GST) "]
[null,null,null,null,null,null,null,null,null,null,null,null,null,null,null,null,null,null,null,null,null,null,null,null,null,null,null,null,null,null,null,"NZ3 - New Zealand: NZBN Number                "]
[null,null,null,null,null,null,null,null,null,null,null,null,null,null,null,null,null,null,null,null,null,null,null,null,null,null,null,null,null,null,null,"OM0 - Oman: VAT Registration Number           "]
[null,null,null,null,null,null,null,null,null,null,null,null,null,null,null,null,null,null,null,null,null,null,null,null,null,null,null,null,null,null,null,"PA3 - Panama: RUC Number                      "]
[null,null,null,null,null,null,null,null,null,null,null,null,null,null,null,null,null,null,null,null,null,null,null,null,null,null,null,null,null,null,null,"PE1 - Peru: RUC Number                        "]
[null,null,null,null,null,null,null,null,null,null,null,null,null,null,null,null,null,null,null,null,null,null,null,null,null,null,null,null,null,null,null,"PH1 - Philippines: Taxpayer ID Number         "]
[null,null,null,null,null,null,null,null,null,null,null,null,null,null,null,null,null,null,null,null,null,null,null,null,null,null,null,null,null,null,null,"PH3 - Philippines: New Taxpayer ID Number     "]
[null,null,null,null,null,null,null,null,null,null,null,null,null,null,null,null,null,null,null,null,null,null,null,null,null,null,null,null,null,null,null,"PL0 - Poland: VAT Registration Number         "]
[null,null,null,null,null,null,null,null,null,null,null,null,null,null,null,null,null,null,null,null,null,null,null,null,null,null,null,null,null,null,null,"PL1 - Poland: NIP Number                      "]
[null,null,null,null,null,null,null,null,null,null,null,null,null,null,null,null,null,null,null,null,null,null,null,null,null,null,null,null,null,null,null,"PL2 - Poland: PESEL Number                    "]
[null,null,null,null,null,null,null,null,null,null,null,null,null,null,null,null,null,null,null,null,null,null,null,null,null,null,null,null,null,null,null,"PT0 - Portugal: VAT Registration Number       "]
[null,null,null,null,null,null,null,null,null,null,null,null,null,null,null,null,null,null,null,null,null,null,null,null,null,null,null,null,null,null,null,"PT1 - Portugal: NIF Number                    "]
[null,null,null,null,null,null,null,null,null,null,null,null,null,null,null,null,null,null,null,null,null,null,null,null,null,null,null,null,null,null,null,"QA0 - Qatar: VAT Registration Number          "]
[null,null,null,null,null,null,null,null,null,null,null,null,null,null,null,null,null,null,null,null,null,null,null,null,null,null,null,null,null,null,null,"QA1 - Qatar: Tax Identification Number (TIN)  "]
[null,null,null,null,null,null,null,null,null,null,null,null,null,null,null,null,null,null,null,null,null,null,null,null,null,null,null,null,null,null,null,"RO0 - Romania: VAT Registration Number        "]
[null,null,null,null,null,null,null,null,null,null,null,null,null,null,null,null,null,null,null,null,null,null,null,null,null,null,null,null,null,null,null,"RO1 - Romania: Tax Number                     "]
[null,null,null,null,null,null,null,null,null,null,null,null,null,null,null,null,null,null,null,null,null,null,null,null,null,null,null,null,null,null,null,"RS1 - Serbia: JMBG Number or PIB Number       "]
[null,null,null,null,null,null,null,null,null,null,null,null,null,null,null,null,null,null,null,null,null,null,null,null,null,null,null,null,null,null,null,"RU1 - Russia: INN                             "]
[null,null,null,null,null,null,null,null,null,null,null,null,null,null,null,null,null,null,null,null,null,null,null,null,null,null,null,null,null,null,null,"RU2 - Russia: OKPO Code                       "]
[null,null,null,null,null,null,null,null,null,null,null,null,null,null,null,null,null,null,null,null,null,null,null,null,null,null,null,null,null,null,null,"RU3 - Russia: KPP Number                      "]
[null,null,null,null,null,null,null,null,null,null,null,null,null,null,null,null,null,null,null,null,null,null,null,null,null,null,null,null,null,null,null,"RU4 - Russia: OFK Number                      "]
[null,null,null,null,null,null,null,null,null,null,null,null,null,null,null,null,null,null,null,null,null,null,null,null,null,null,null,null,null,null,null,"SA0 - Saudi Arabia: VAT Registration Number   "]
[null,null,null,null,null,null,null,null,null,null,null,null,null,null,null,null,null,null,null,null,null,null,null,null,null,null,null,null,null,null,null,"SA1 - Saudi Arabia: Tax Identification Number "]
[null,null,null,null,null,null,null,null,null,null,null,null,null,null,null,null,null,null,null,null,null,null,null,null,null,null,null,null,null,null,null,"SB3 - Solomon islands: TIN Number             "]
[null,null,null,null,null,null,null,null,null,null,null,null,null,null,null,null,null,null,null,null,null,null,null,null,null,null,null,null,null,null,null,"SC1 - Seychelles: Tax Identification Number   "]
[null,null,null,null,null,null,null,null,null,null,null,null,null,null,null,null,null,null,null,null,null,null,null,null,null,null,null,null,null,null,null,"SE0 - Sweden: VAT Registration Number         "]
[null,null,null,null,null,null,null,null,null,null,null,null,null,null,null,null,null,null,null,null,null,null,null,null,null,null,null,null,null,null,null,"SE2 - Sweden: Organization Registration Number"]
[null,null,null,null,null,null,null,null,null,null,null,null,null,null,null,null,null,null,null,null,null,null,null,null,null,null,null,null,null,null,null,"SG1 - Singapore: GST Registration number      "]
[null,null,null,null,null,null,null,null,null,null,null,null,null,null,null,null,null,null,null,null,null,null,null,null,null,null,null,null,null,null,null,"SI0 - Slovenia: VAT Registration Number       "]
[null,null,null,null,null,null,null,null,null,null,null,null,null,null,null,null,null,null,null,null,null,null,null,null,null,null,null,null,null,null,null,"SI1 - Slovenia: Tax Number                    "]
[null,null,null,null,null,null,null,null,null,null,null,null,null,null,null,null,null,null,null,null,null,null,null,null,null,null,null,null,null,null,null,"SK0 - Slovakia: VAT Registration Number       "]
[null,null,null,null,null,null,null,null,null,null,null,null,null,null,null,null,null,null,null,null,null,null,null,null,null,null,null,null,null,null,null,"SK1 - Slovakia: DIC Number                    "]
[null,null,null,null,null,null,null,null,null,null,null,null,null,null,null,null,null,null,null,null,null,null,null,null,null,null,null,null,null,null,null,"SK2 - Slovakia: ICO Number                    "]
[null,null,null,null,null,null,null,null,null,null,null,null,null,null,null,null,null,null,null,null,null,null,null,null,null,null,null,null,null,null,null,"SN3 - Senegal: NINEA Number                   "]
[null,null,null,null,null,null,null,null,null,null,null,null,null,null,null,null,null,null,null,null,null,null,null,null,null,null,null,null,null,null,null,"SS3 - South Sudan: TIN Number                 "]
[null,null,null,null,null,null,null,null,null,null,null,null,null,null,null,null,null,null,null,null,null,null,null,null,null,null,null,null,null,null,null,"SZ1 - Swaziland:Taxpayer Identification Number"]
[null,null,null,null,null,null,null,null,null,null,null,null,null,null,null,null,null,null,null,null,null,null,null,null,null,null,null,null,null,null,null,"TH1 - Thailand: Personal ID                   "]
[null,null,null,null,null,null,null,null,null,null,null,null,null,null,null,null,null,null,null,null,null,null,null,null,null,null,null,null,null,null,null,"TH3 - Thailand: Tax ID                        "]
[null,null,null,null,null,null,null,null,null,null,null,null,null,null,null,null,null,null,null,null,null,null,null,null,null,null,null,null,null,null,null,"TR1 - Turkey: Tax Office                      "]
[null,null,null,null,null,null,null,null,null,null,null,null,null,null,null,null,null,null,null,null,null,null,null,null,null,null,null,null,null,null,null,"TR2 - Turkey: Tax number                      "]
[null,null,null,null,null,null,null,null,null,null,null,null,null,null,null,null,null,null,null,null,null,null,null,null,null,null,null,null,null,null,null,"TW1 - Taiwan: GUI Registration Number         "]
[null,null,null,null,null,null,null,null,null,null,null,null,null,null,null,null,null,null,null,null,null,null,null,null,null,null,null,null,null,null,null,"TW2 - Taiwan: Tax Registration Number         "]
[null,null,null,null,null,null,null,null,null,null,null,null,null,null,null,null,null,null,null,null,null,null,null,null,null,null,null,null,null,null,null,"TZ3 - Tanzania:Tax Identification number (TIN)"]
[null,null,null,null,null,null,null,null,null,null,null,null,null,null,null,null,null,null,null,null,null,null,null,null,null,null,null,null,null,null,null,"UA1 - Ukraine: INN                            "]
[null,null,null,null,null,null,null,null,null,null,null,null,null,null,null,null,null,null,null,null,null,null,null,null,null,null,null,null,null,null,null,"UA2 - Ukraine:  EDRPOU Number or DRFO Number  "]
[null,null,null,null,null,null,null,null,null,null,null,null,null,null,null,null,null,null,null,null,null,null,null,null,null,null,null,null,null,null,null,"UA3 - Ukraine: NDS Number                     "]
[null,null,null,null,null,null,null,null,null,null,null,null,null,null,null,null,null,null,null,null,null,null,null,null,null,null,null,null,null,null,null,"UG1 - Uganda: Taxpayer Identification Number  "]
[null,null,null,null,null,null,null,null,null,null,null,null,null,null,null,null,null,null,null,null,null,null,null,null,null,null,null,null,null,null,null,"US01 - US Tax Identification Number            "]
[null,null,null,null,null,null,null,null,null,null,null,null,null,null,null,null,null,null,null,null,null,null,null,null,null,null,null,null,null,null,null,"US1 - USA: Social Security Number             "]
[null,null,null,null,null,null,null,null,null,null,null,null,null,null,null,null,null,null,null,null,null,null,null,null,null,null,null,null,null,null,null,"US2 - USA: Employer ID Number                 "]
[null,null,null,null,null,null,null,null,null,null,null,null,null,null,null,null,null,null,null,null,null,null,null,null,null,null,null,null,null,null,null,"US3 - USA: Tax Number 3                       "]
[null,null,null,null,null,null,null,null,null,null,null,null,null,null,null,null,null,null,null,null,null,null,null,null,null,null,null,null,null,null,null,"US4 - USA: Unique Form Identifier             "]
[null,null,null,null,null,null,null,null,null,null,null,null,null,null,null,null,null,null,null,null,null,null,null,null,null,null,null,null,null,null,null,"US5 - USA: GIIN Number                        "]
[null,null,null,null,null,null,null,null,null,null,null,null,null,null,null,null,null,null,null,null,null,null,null,null,null,null,null,null,null,null,null,"UY3 - Uruguay: RUT Number                     "]
[null,null,null,null,null,null,null,null,null,null,null,null,null,null,null,null,null,null,null,null,null,null,null,null,null,null,null,null,null,null,null,"VE1 - Venezuela: RIF Number                   "]
[null,null,null,null,null,null,null,null,null,null,null,null,null,null,null,null,null,null,null,null,null,null,null,null,null,null,null,null,null,null,null,"VE2 - Venezuela: NIT Number                   "]
[null,null,null,null,null,null,null,null,null,null,null,null,null,null,null,null,null,null,null,null,null,null,null,null,null,null,null,null,null,null,null,"VN1 - Vietnam: Tax Identification Number      "]
[null,null,null,null,null,null,null,null,null,null,null,null,null,null,null,null,null,null,null,null,null,null,null,null,null,null,null,null,null,null,null,"ZA1 - South Africa: VAT Registration Number   "]
[null,null,null,null,null,null,null,null,null,null,null,null,null,null,null,null,null,null,null,null,null,null,null,null,null,null,null,null,null,null,null,"ZA3 - South Africa: Income Tax Registration No"]
[null,null,null,null,null,null,null,null,null,null,null,null,null,null,null,null,null,null,null,null,null,null,null,null,null,null,null,null,null,null,null,"ZA5 - South Africa:TRN-TAX Registration Number"]
[null,null,null,null,null,null,null,null,null,null,null,null,null,null,null,null,null,null,null,null,null,null,null,null,null,null,null,null,null,null,null,"ZM1 - Zambia: Taxpayer Identification Number  "]
[null,null,null,null,null,null,null,null,null,null,null,null,null,null,null,null,null,null,null,null,null,null,null,null,null,null,null,null,null,null,null,"ZW1 - Zimbabwe: VAT Registration Number       "]
[null,null,null,null,null,null,null,null,null,null,null,null,null,null,null,null,null,null,null,null,null,null,null,null,null,null,null,null,null,null,null,"ZW2 - Zimbabwe: Business Partner Number (BPN) "]